bitfinex-derivatives/quotes_BTCF0:USTF0_20251118
["timestamp","ask_amount","ask_price","bid_price","bid_amount"]
[1763488378926,0.04422,93191.0,93190.0,0.38932483]
[1763488379130,0.04422,93191.0,93190.0,0.41049483]
[1763488380724,0.00016094,93199.0,93198.0,0.1497062]
[1763488381234,0.04470094,93199.0,93198.0,0.04234]
[1763488381630,0.04470094,93199.0,93198.0,0.02117]
[1763488381837,0.04454,93196.0,93195.0,0.40314]
[1763488382134,0.04454,93196.0,93195.0,0.5105093]
[1763488382530,0.04454,93196.0,93195.0,0.66278]
[1763488382730,0.04454,93196.0,93195.0,0.02117]
[1763488382934,0.1519143,93191.0,93190.0,0.00109993]
[1763488383130,0.1519143,93191.0,93190.0,0.26073993]
[1763488383528,0.02136,93191.0,93190.0,0.15081533]
[1763488383728,0.02136,93191.0,93190.0,0.00109993]
[1763488383729,0.1519143,93191.0,93190.0,0.00109993]
[1763488384036,0.0723497,93191.0,93190.0,0.04343993]
[1763488384336,0.179724,93191.0,93190.0,0.04343993]
[1763488384738,0.179724,93191.0,93190.0,0.02226993]
[1763488385130,0.0723497,93191.0,93190.0,0.04343993]
[1763488385330,0.1519108,93194.0,93193.0,0.04234]
[1763488385531,0.04454,93194.0,93193.0,0.04234]
[1763488386036,0.10752644,93199.0,93190.0,0.00109993]
[1763488386037,0.02152094,93199.0,93198.0,0.1497062]
[1763488386224,0.02798549,93199.0,93198.0,0.1497062]
[1763488386427,0.00016094,93199.0,93198.0,0.1497062]
[1763488386623,0.02152094,93199.0,93198.0,0.1497062]
[1763488386832,0.00016094,93199.0,93198.0,0.1497062]
[1763488387032,0.02152094,93199.0,93198.0,0.1497062]
[1763488387632,0.02152094,93199.0,93198.0,0.04234]
[1763488387633,0.04470094,93199.0,93198.0,0.04234]
[1763488388238,0.07234751,93199.0,93198.0,0.04234]
[1763488388434,0.07234751,93199.0,93198.0,0.30198]
[1763488388641,0.04470094,93199.0,93198.0,0.25964]
[1763488388936,0.04470094,93199.0,93198.0,0.28081]
[1763488389125,0.04470094,93199.0,93198.0,0.25964]
[1763488389329,0.05826,93222.0,93221.0,0.04234]
[1763488389525,0.3608,93229.0,93228.0,0.04234]
[1763488389738,0.3608,93229.0,93228.0,0.02117]
[1763488389739,0.43297205,93229.0,93228.0,0.02117]
[1763488389942,0.04454,93222.0,93221.0,0.30198]
[1763488390733,0.05826,93230.0,93229.0,0.1496705]
[1763488390932,0.05826,93230.0,93229.0,0.4093105]
[1763488391244,0.00016094,93231.0,93230.0,0.04453803]
[1763488391937,0.3608,93262.0,93245.0,0.1496521]
[1763488392144,0.05135811,93246.0,93245.0,0.7700921]
[1763488392343,0.41215811,93246.0,93245.0,0.30198]
[1763488392542,0.41215811,93246.0,93240.0,0.00219803]
[1763488392543,0.1518567,93241.0,93240.0,0.00219803]
[1763488392834,0.04454,93241.0,93240.0,0.30413803]
[1763488393734,0.04554,93241.0,93240.0,0.26179803]
[1763488394741,0.04654,93241.0,93240.0,0.26179803]
[1763488395133,0.04654,93241.0,93240.0,0.28296803]
[1763488395533,0.04654,93241.0,93240.0,0.30413803]
[1763488395734,0.002,93241.0,93240.0,0.30413803]
[1763488397545,0.00681811,93246.0,93245.0,0.1496521]
[1763488397748,0.00681811,93246.0,93245.0,0.5104521]
[1763488398844,0.05135811,93246.0,93245.0,0.40314]
[1763488399241,0.00681811,93246.0,93245.0,0.5104521]
[1763488399742,0.05135811,93246.0,93245.0,0.5104521]
[1763488399930,0.05235811,93246.0,93245.0,0.5104521]
[1763488400334,0.00781811,93246.0,93245.0,0.5104521]
[1763488400746,0.00681811,93246.0,93245.0,0.5104521]
[1763488401846,9.5e-07,93250.0,93249.0,0.1496475]
[1763488402030,9.5e-07,93250.0,93249.0,0.4091675]
[1763488405338,9.5e-07,93250.0,93249.0,0.5278675]
[1763488406243,9.5e-07,93250.0,93249.0,0.4091675]
[1763488406443,0.01375095,93250.0,93249.0,0.25948]
[1763488406741,0.05913095,93250.0,93249.0,0.25948]
[1763488406944,0.05913095,93250.0,93249.0,0.3015]
[1763488407142,0.05913095,93250.0,93249.0,0.28049]
[1763488407538,0.05913095,93250.0,93249.0,0.25948]
[1763488407742,0.04347,93246.0,93245.0,0.8499214]
[1763488408045,0.04347,93246.0,93245.0,0.7696114]
[1763488411152,9.5e-07,93250.0,93249.0,0.1073075]
[1763488415644,0.02109095,93250.0,93249.0,0.1493275]
[1763488416142,9.5e-07,93250.0,93249.0,0.1073075]
[1763488419545,9.5e-07,93250.0,93249.0,0.1139775]
[1763488419946,9.5e-07,93250.0,93249.0,0.60175187]
[1763488420146,9.5e-07,93250.0,93249.0,0.86119187]
[1763488420854,9.5e-07,93250.0,93249.0,0.93790385]
[1763488421050,9.5e-07,93250.0,93249.0,0.93890385]
[1763488421244,9.5e-07,93250.0,93249.0,0.86219187]
[1763488421848,0.013,93310.0,93249.0,0.86219187]
[1763488421849,9e-08,93286.0,93285.0,0.04202]
[1763488422159,0.05647,93300.0,93299.0,0.14927]
[1763488422355,0.05647,93300.0,93299.0,0.76947]
[1763488422755,0.013,93310.0,93309.0,0.1492585]
[1763488422756,0.05647,93310.0,93309.0,0.1492585]
[1763488423255,0.04347,93311.0,93310.0,0.02320803]
[1763488424152,0.04347,93311.0,93310.0,0.04421803]
[1763488425059,0.00016083,93319.0,93312.0,0.04202]
[1763488425356,0.04363083,93319.0,93318.0,0.1492481]
[1763488425557,0.06829911,93319.0,93318.0,0.4086081]
[1763488425746,0.00016083,93319.0,93318.0,0.4086081]
[1763488426360,0.00116083,93319.0,93318.0,0.4086081]
[1763488426852,0.013,93330.0,93329.0,0.1492355]
[1763488427053,0.05647,93340.0,93339.0,0.107204]
[1763488427253,0.08113482,93340.0,93339.0,0.107204]
[1763488427649,0.08113482,93340.0,93339.0,0.128214]
[1763488427849,0.05647,93340.0,93339.0,0.04202]
[1763488428062,0.04347,93338.0,93337.0,0.25936]
[1763488429460,0.04347,93331.0,93330.0,0.04218074]
[1763488429661,0.04347,93331.0,93330.0,0.30369877]
[1763488430461,0.04547,93338.0,93337.0,0.1282163]
[1763488430762,0.1526752,93338.0,93337.0,0.25932]
[1763488430961,0.04547,93338.0,93337.0,0.25932]
[1763488431663,0.04447,93338.0,93337.0,0.25932]
[1763488432058,0.04347,93331.0,93330.0,0.00016074]
[1763488432369,0.04447,93331.0,93330.0,0.26163877]
[1763488433156,0.1516832,93331.0,93330.0,0.00235877]
[1763488434356,0.1636912,93324.0,93323.0,0.25928]
[1763488434760,0.5244912,93324.0,93323.0,0.25928]
[1763488434960,0.1072372,93311.0,93310.0,0.107237]
[1763488435163,0.04347,93311.0,93310.0,0.10796966]
[1763488435663,0.04347,93317.0,93316.0,0.1511994]
[1763488435867,0.04347,93317.0,93316.0,0.1072294]
[1763488436270,0.04347,93317.0,93316.0,0.1511994]
[1763488436567,0.04347,93307.0,93306.0,0.30321]
[1763488436768,0.04347,93307.0,93306.0,0.4104519]
[1763488439263,0.04347,93307.0,93306.0,0.25924]
[1763488440567,0.00219803,93310.0,93307.0,0.1072408]
[1763488440769,0.02482803,93310.0,93309.0,0.0449]
[1763488441073,0.04512074,93320.0,93319.0,0.152127]
[1763488441264,0.04731877,93320.0,93319.0,0.152127]
[1763488441767,0.00235877,93320.0,93319.0,0.152127]
[1763488441972,0.00016074,93320.0,93319.0,0.152127]
[1763488442366,0.00116074,93320.0,93319.0,0.152127]
[1763488442871,0.04496,93318.0,93317.0,0.3664688]
[1763488443366,0.00116074,93320.0,93319.0,0.0449]
[1763488444567,0.00016074,93320.0,93319.0,0.0449]
[1763488444758,0.05796,93340.0,93339.0,0.107204]
[1763488444961,0.06015803,93340.0,93339.0,0.152104]
[1763488445161,0.06015803,93340.0,93339.0,0.0449]
[1763488445968,0.06015803,93340.0,93332.0,0.3608]
[1763488445969,0.04496,93333.0,93332.0,0.3826]
[1763488446160,0.04496,93333.0,93332.0,0.4057]
[1763488447857,0.04696,93333.0,93332.0,0.4057]
[1763488448670,0.04796,93333.0,93332.0,0.4057]
[1763488448874,0.04796,93333.0,93332.0,0.512912]
[1763488449067,0.04796,93333.0,93332.0,0.4057]
[1763488449875,0.04496,93331.0,93330.0,0.0008934]
[1763488450076,0.04496,93331.0,93330.0,0.1530077]
[1763488450265,0.04496,93331.0,93330.0,0.0457934]
[1763488450573,0.04496,93331.0,93330.0,0.1530077]
[1763488450772,0.04496,93331.0,93330.0,0.0226934]
[1763488450971,0.04496,93331.0,93330.0,0.0457934]
[1763488451278,0.04596,93331.0,93330.0,0.0008934]
[1763488451466,0.04696,93331.0,93330.0,0.0008934]
[1763488454171,0.1521916,93315.0,93306.0,0.07699861]
[1763488454484,0.04496,93304.0,93303.0,0.4898454]
[1763488454787,0.04496,93304.0,93303.0,0.7721054]
[1763488454980,0.04496,93304.0,93303.0,0.7490054]
[1763488455982,0.04496,93304.0,93303.0,0.7721054]
[1763488457082,0.04496,93304.0,93303.0,0.66486]
[1763488457985,0.00016074,93313.0,93312.0,0.05141]
[1763488458286,0.00016074,93313.0,93312.0,0.67141]
[1763488458480,0.01351,93330.0,93329.0,0.1072155]
[1763488458481,0.05847,93330.0,93329.0,0.1072155]
[1763488458688,0.04496,93323.0,93322.0,0.3041]
[1763488458888,0.04496,93323.0,93322.0,0.0449]
[1763488459289,0.1521835,93322.0,93321.0,0.2592]
[1763488460387,0.3608,93326.0,93312.0,0.36096074]
[1763488460388,0.1521939,93313.0,93312.0,0.36096074]
[1763488460685,0.1521939,93313.0,93312.0,0.62016074]
[1763488461299,0.04496,93313.0,93312.0,0.64127074]
[1763488461496,0.04596,93313.0,93312.0,0.66332074]
[1763488462090,0.04596,93313.0,93312.0,0.62016074]
[1763488462495,0.04596,93313.0,93312.0,0.25936074]
[1763488462994,0.04596,93313.0,93312.0,0.28047074]
[1763488463291,0.04596,93313.0,93312.0,0.30252074]
[1763488463698,0.001,93313.0,93312.0,0.66332074]
[1763488464603,0.02252,93313.0,93312.0,0.66332074]
[1763488464788,0.04514,93313.0,93312.0,0.66332074]
[1763488465193,0.001,93313.0,93312.0,0.66332074]
[1763488465500,0.02252,93313.0,93312.0,0.66332074]
[1763488466396,0.001,93313.0,93312.0,0.66332074]
[1763488467699,0.04381,93313.0,93312.0,0.30252074]
[1763488467998,0.04381,93313.0,93312.0,0.00016074]
[1763488469305,0.04381,93313.0,93283.0,0.3608]
[1763488469306,0.04294,93288.0,93287.0,0.07699861]
[1763488469495,0.1502084,93283.0,93277.0,0.07699861]
[1763488469696,0.40374,93283.0,93276.0,0.25916]
[1763488469894,0.40374,93283.0,93281.0,0.1072699]
[1763488470399,0.04294,93283.0,93282.0,0.04444638]
[1763488470899,0.04194,93283.0,93282.0,0.04444638]
[1763488471298,0.04294,93283.0,93282.0,0.04444638]
[1763488471803,0.05582,93290.0,93289.0,0.04431]
[1763488472001,0.00219803,93290.0,93289.0,0.1515715]
[1763488472210,0.00016074,93292.0,93291.0,0.1515692]
[1763488473102,0.00016074,93292.0,93291.0,0.5123692]
[1763488476004,0.04310074,93292.0,93291.0,0.40511]
[1763488476208,0.04310074,93292.0,93291.0,0.66431]
[1763488477007,0.04310074,93292.0,93291.0,0.7715692]
[1763488477202,0.04310074,93292.0,93291.0,0.7725692]
[1763488477407,0.04310074,93292.0,93291.0,0.66631]
[1763488477913,0.04310074,93292.0,93291.0,0.66531]
[1763488478103,0.04310074,93292.0,93291.0,0.3608]
[1763488478695,0.1501992,93291.0,93290.0,0.00073266]
[1763488478903,0.1502084,93283.0,93278.0,0.2592]
[1763488479102,0.1502084,93283.0,93280.0,0.00073266]
[1763488480510,0.1502084,93283.0,93278.0,0.2592]
[1763488480511,0.150213,93279.0,93278.0,0.2592]
[1763488480706,0.04294,93275.0,93270.0,0.1072825]
[1763488480906,0.04194,93275.0,93270.0,0.10801516]
[1763488481202,0.1492176,93275.0,93270.0,0.00073266]
[1763488481409,0.04294,93274.0,93270.0,0.00073266]
[1763488481709,0.04205706,93274.0,93270.0,0.00073266]
[1763488483100,0.04205706,93274.0,93271.0,0.1072813]
[1763488483309,0.00011706,93274.0,93273.0,0.04447074]
[1763488483499,0.00011706,93274.0,93273.0,0.04547074]
[1763488490311,0.04305706,93274.0,93273.0,0.00116074]
[1763488490521,0.04305706,93274.0,93273.0,0.04547074]
[1763488490911,0.00011706,93274.0,93273.0,0.04547074]
[1763488494616,0.02176706,93274.0,93273.0,0.04547074]
[1763488495314,0.00011706,93274.0,93273.0,0.04547074]
[1763488496014,0.02176706,93274.0,93273.0,0.04547074]
[1763488496218,0.04305706,93274.0,93273.0,0.04547074]
[1763488497015,0.02176706,93274.0,93273.0,0.04547074]
[1763488497918,0.00011706,93274.0,93273.0,0.04547074]
[1763488500718,0.00011706,93274.0,93273.0,0.12253806]
[1763488501021,0.00011706,93274.0,93273.0,0.22981806]
[1763488501221,0.00011706,93274.0,93273.0,0.15275074]
[1763488501805,0.00011706,93274.0,93273.0,0.22981968]
[1763488502011,0.04462706,93274.0,93273.0,0.22981968]
[1763488502516,0.04462706,93274.0,93273.0,0.04547074]
[1763488502718,0.04462706,93274.0,93273.0,0.30471074]
[1763488503024,0.04462706,93274.0,93273.0,0.28193074]
[1763488503223,0.04462706,93274.0,93273.0,0.26040074]
[1763488503817,0.04462706,93274.0,93273.0,0.00116074]
[1763488504114,0.04451,93266.0,93264.0,0.07706894]
[1763488504312,0.40531,93266.0,93258.0,0.25924]
[1763488504514,0.04451,93247.0,93246.0,0.00026811]
[1763488504823,0.15192761,93247.0,93246.0,0.00026811]
[1763488505019,0.04461771,93247.0,93246.0,0.00026811]
[1763488505314,0.04461771,93247.0,93246.0,0.04429811]
[1763488505519,0.04361771,93247.0,93246.0,0.04429811]
[1763488505716,0.04361771,93247.0,93246.0,0.02318811]
[1763488505915,0.15092761,93247.0,93246.0,0.02318811]
[1763488506224,0.1518302,93238.0,93237.0,0.00016083]
[1763488506424,0.1508302,93238.0,93237.0,0.00016083]
[1763488506623,0.04451,93238.0,93237.0,0.00016083]
[1763488507123,0.04451,93238.0,93237.0,0.04419083]
[1763488507426,0.00219803,93240.0,93239.0,0.04403]
[1763488507723,0.00219803,93240.0,93239.0,0.30327]
[1763488507922,0.00010771,93247.0,93246.0,0.151341]
[1763488508308,0.3608,93261.0,93255.0,0.1513307]
[1763488508513,0.3608,93261.0,93255.0,0.4105707]
[1763488508719,0.01391,93267.0,93255.0,0.4105707]
[1763488509023,2.443e-05,93256.0,93255.0,0.4105707]
[1763488509926,0.04453443,93256.0,93255.0,0.4105707]
[1763488510326,0.04453443,93256.0,93255.0,0.4106107]
[1763488510620,2.443e-05,93256.0,93255.0,0.3665807]
[1763488511022,0.02226443,93256.0,93255.0,0.4106107]
[1763488511224,2.443e-05,93256.0,93255.0,0.3665807]
[1763488512015,0.04453443,93256.0,93255.0,0.4106107]
[1763488512316,2.443e-05,93256.0,93255.0,0.3665807]
[1763488513221,0.02226443,93256.0,93255.0,0.3895007]
[1763488513525,2.443e-05,93256.0,93255.0,0.25928]
[1763488514923,0.04453443,93256.0,93255.0,0.30331]
[1763488516325,0.04453443,93256.0,93255.0,0.25928]
[1763488516326,2.443e-05,93256.0,93255.0,0.25928]
[1763488518118,0.02226443,93256.0,93255.0,0.30331]
[1763488518324,0.04453443,93256.0,93255.0,0.02292]
[1763488518516,0.04453443,93256.0,93255.0,0.2822]
[1763488518722,0.04453443,93256.0,93255.0,0.30331]
[1763488520414,0.04315,93251.0,93250.0,0.10803916]
[1763488520629,0.04315,93251.0,93250.0,0.36731916]
[1763488520821,0.04315,93251.0,93250.0,0.38835916]
[1763488521018,0.1504553,93251.0,93250.0,0.02177266]
[1763488521222,0.1504553,93251.0,93250.0,0.00073266]
[1763488521421,0.1504599,93247.0,93246.0,0.25928]
[1763488521618,0.04315,93247.0,93246.0,0.25928]
[1763488521830,0.04315,93247.0,93246.0,0.28032]
[1763488522024,0.04315,93247.0,93246.0,0.30153]
[1763488522225,0.00219803,93250.0,93249.0,0.04225]
[1763488522419,0.05888803,93250.0,93249.0,0.04225]
[1763488523724,0.05888803,93250.0,93249.0,0.04325]
[1763488524125,0.05888803,93250.0,93249.0,0.001]
[1763488525523,0.41968803,93250.0,93249.0,0.001]
[1763488525827,0.41968803,93250.0,93230.0,0.07716818]
[1763488525828,0.04315,93231.0,93230.0,9.924e-05]
[1763488526025,0.40395,93231.0,93230.0,0.0008319]
[1763488526331,0.40395,93231.0,93230.0,0.0430819]
[1763488526928,0.40395,93231.0,93230.0,0.0440819]
[1763488527117,0.04569,93239.0,93238.0,0.1505403]
[1763488527318,0.00219803,93240.0,93239.0,0.04322]
[1763488527517,0.37434,93250.0,93239.0,0.04322]
[1763488527719,0.42222803,93250.0,93249.0,0.1505276]
[1763488527917,0.00219803,93250.0,93249.0,0.1505276]
[1763488528625,0.02534803,93250.0,93249.0,0.1505276]
[1763488528831,0.04788803,93250.0,93249.0,0.1505276]
[1763488529029,0.04788803,93250.0,93249.0,0.1073076]
[1763488529231,0.04569,93248.0,93247.0,0.1290396]
[1763488529423,0.00219803,93250.0,93249.0,0.04322]
[1763488529937,0.04788803,93250.0,93249.0,0.04322]
[1763488532139,0.02317443,93256.0,93255.0,0.1505207]
[1763488532326,0.04571443,93256.0,93255.0,0.1505207]
[1763488533436,0.04671443,93256.0,93255.0,0.1505207]
[1763488533632,0.04569,93253.0,93252.0,0.1073037]
[1763488533836,0.04569,93253.0,93252.0,0.1505237]
[1763488534239,0.02315,93253.0,93252.0,0.1505237]
[1763488534535,0.00202443,93256.0,93252.0,0.1505237]
[1763488534738,0.00202443,93256.0,93255.0,0.1505207]
[1763488534939,0.00202443,93256.0,93255.0,0.4098007]
[1763488535738,0.00102443,93256.0,93255.0,0.4098007]
[1763488535933,2.443e-05,93256.0,93255.0,0.3665807]
[1763488536431,0.00102443,93256.0,93255.0,0.3665807]
[1763488536633,0.00202443,93256.0,93255.0,0.4098007]
[1763488537242,3e-08,93256.0,93255.0,0.4098007]
[1763488537745,0.04569,93256.0,93255.0,0.4098007]
[1763488538234,0.04569,93256.0,93255.0,0.04322]
[1763488538441,0.04569,93256.0,93255.0,0.3025]
[1763488539235,0.04569,93256.0,93255.0,0.28101]
[1763488540346,0.04569,93256.0,93255.0,0.25928]
[1763488541342,0.04569,93256.0,93255.0,0.28101]
[1763488541739,0.04569,93256.0,93255.0,0.25928]
[1763488542741,0.04569,93256.0,93255.0,0.28101]
[1763488543444,0.04569,93251.0,93250.0,0.00073266]
[1763488543745,0.01497803,93260.0,93238.0,0.1073202]
[1763488543746,0.1530022,93245.0,93244.0,0.107313]
[1763488544338,0.04569,93241.0,93240.0,0.00089349]
[1763488545634,0.04469,93241.0,93240.0,0.00089349]
[1763488546141,0.04369,93241.0,93240.0,0.00089349]
[1763488546846,0.04369,93241.0,93240.0,0.00289349]
[1763488547945,0.04369,93241.0,93240.0,0.11021149]
[1763488548140,0.04369,93241.0,93240.0,0.00289349]
[1763488549646,0.05847,93231.0,93221.0,0.07713528]
[1763488549846,0.04569,93215.0,93214.0,0.07713528]
[1763488550046,0.04569,93207.0,93206.0,0.00026822]
[1763488550747,0.04581791,93207.0,93206.0,0.00026822]
[1763488551946,0.04481791,93207.0,93206.0,0.00026822]
[1763488552250,0.04569,93198.0,93197.0,0.00016092]
[1763488554050,0.04569,93198.0,93197.0,0.02189092]
[1763488554249,0.00012791,93207.0,93206.0,0.1505771]
[1763488556545,0.02331092,93216.0,93215.0,0.1505668]
[1763488556951,0.00016092,93216.0,93215.0,0.1505668]
[1763488557454,0.05755,93230.0,93229.0,0.1284407]
[1763488557641,0.05755,93230.0,93229.0,0.02111]
[1763488559243,0.04477,93226.0,93225.0,0.1284445]
[1763488560251,0.04477,93226.0,93225.0,0.1498145]
[1763488560844,0.04477,93226.0,93225.0,0.04248]
[1763488561041,0.01378,93230.0,93224.0,0.1073357]
[1763488561042,0.001,93230.0,93229.0,0.1498107]
[1763488561739,0.01278,93250.0,93238.0,0.1498003]
[1763488561938,0.01278,93250.0,93238.0,0.5106003]
[1763488562443,0.01278,93260.0,93238.0,0.5106003]
[1763488562744,0.1073014,93255.0,93238.0,0.5106003]
[1763488562946,0.00116092,93239.0,93238.0,0.5106003]
[1763488563346,0.00016092,93239.0,93238.0,0.5106003]
[1763488564748,0.00016092,93239.0,93238.0,0.40328]
[1763488564944,0.00016092,93239.0,93238.0,0.5106003]
[1763488565648,0.04493092,93239.0,93238.0,0.40328]
[1763488566047,0.00016092,93239.0,93238.0,0.40328]
[1763488566256,2e-08,93239.0,93238.0,0.40328]
[1763488568045,2e-08,93239.0,93238.0,0.40428]
[1763488568849,2e-08,93239.0,93238.0,0.40328]
[1763488571358,2e-08,93239.0,93238.0,0.40428]
[1763488572161,2e-08,93239.0,93238.0,0.40328]
[1763488575458,2e-08,93239.0,93238.0,0.3608]
[1763488580957,2e-08,93239.0,93238.0,0.4795]
[1763488581866,2e-08,93239.0,93238.0,0.55663528]
[1763488582264,2e-08,93239.0,93238.0,0.4795]
[1763488582863,2e-08,93239.0,93238.0,0.55640992]
[1763488584763,2e-08,93239.0,93238.0,0.4795]
[1763488585473,3e-08,93246.0,93245.0,0.1513622]
[1763488585673,3e-08,93246.0,93245.0,0.7714022]
[1763488586167,3e-08,93246.0,93245.0,0.86784994]
[1763488586466,5e-08,93255.0,93254.0,0.1513519]
[1763488586669,0.01398,93280.0,93279.0,0.1072731]
[1763488586670,0.05802,93280.0,93279.0,0.1072731]
[1763488587370,0.45802,93280.0,93279.0,0.1072731]
[1763488587866,0.45802,93280.0,93279.0,0.1291631]
[1763488588070,0.05802,93280.0,93279.0,0.1519431]
[1763488588270,0.06002,93280.0,93279.0,0.1519431]
[1763488588473,0.06102,93280.0,93279.0,0.1519431]
[1763488589462,0.003,93280.0,93279.0,0.1519431]
[1763488589662,0.04641,93280.0,93279.0,0.1519431]
[1763488589862,0.003,93280.0,93279.0,0.1519431]
[1763488591172,0.002,93280.0,93279.0,0.1519431]
[1763488591374,0.001,93280.0,93279.0,0.1519431]
[1763488591566,0.002,93280.0,93279.0,0.1519431]
[1763488591968,0.001,93280.0,93279.0,0.1519431]
[1763488592183,0.002,93280.0,93279.0,0.1519431]
[1763488594872,0.00026799,93286.0,93285.0,0.1520662]
[1763488595075,0.00015986,93289.0,93288.0,0.1634828]
[1763488595372,0.05739,93303.0,93302.0,0.1520467]
[1763488596465,0.04341,93302.0,93301.0,0.2592]
[1763488597676,0.04441,93302.0,93301.0,0.2592]
[1763488598071,0.04441,93302.0,93301.0,0.304]
[1763488598378,0.04541,93302.0,93301.0,0.304]
[1763488599074,0.04541,93302.0,93301.0,0.2592]
[1763488599274,0.1506578,93301.0,93300.0,0.00219803]
[1763488599479,0.1506578,93301.0,93300.0,0.26135803]
[1763488599480,0.04341,93301.0,93300.0,0.26135803]
[1763488600176,0.04341,93301.0,93300.0,0.00219803]
[1763488600370,0.04341,93294.0,93293.0,0.00016083]
[1763488601871,0.04341,93292.0,93291.0,0.07241993]
[1763488602179,0.1506794,93283.0,93282.0,0.1072656]
[1763488602579,0.04341,93283.0,93282.0,0.1072656]
[1763488603781,0.04341,93281.0,93280.0,0.26131803]
[1763488604671,0.04341,93281.0,93280.0,0.00219803]
[1763488605081,0.04341,93281.0,93280.0,0.02421803]
[1763488605285,0.04341,93281.0,93280.0,0.04699803]
[1763488605980,0.10741943,93292.0,93280.0,0.00219803]
[1763488606183,0.04357083,93292.0,93291.0,0.1072593]
[1763488606382,0.04341,93279.0,93278.0,0.5128743]
[1763488607981,0.04341,93279.0,93278.0,0.5138743]
[1763488608378,0.04357083,93292.0,93291.0,0.1520593]
[1763488608579,0.00016083,93292.0,93291.0,0.1520593]
[1763488614384,0.04357083,93292.0,93291.0,0.0448]
[1763488614589,0.04357083,93292.0,93291.0,0.30392]
[1763488615583,0.00016083,93292.0,93291.0,0.30392]
[1763488616180,3e-08,93292.0,93291.0,0.30392]
[1763488616683,3e-08,93292.0,93291.0,0.38095022]
[1763488616891,3e-08,93292.0,93291.0,0.30392]
[1763488619194,3e-08,93292.0,93291.0,0.70392]
[1763488620087,3e-08,93292.0,93291.0,0.30388]
[1763488620491,0.04486003,93292.0,93291.0,0.0448]
[1763488620694,0.04486003,93292.0,93290.0,0.36299803]
[1763488620695,0.04486,93291.0,93290.0,0.36299803]
[1763488620989,0.04486,93291.0,93290.0,0.62207803]
[1763488621192,0.05159,93276.0,93275.0,0.3608]
[1763488621494,0.04486,93275.0,93274.0,0.1072779]
[1763488622200,0.04486,93274.0,93273.0,0.00016083]
[1763488622383,0.04486,93274.0,93273.0,0.04488083]
[1763488622582,0.04486,93274.0,93273.0,0.00016083]
[1763488622982,0.04486,93274.0,93273.0,0.02323083]
[1763488623190,0.04386,93274.0,93273.0,0.02323083]
[1763488623888,0.04386,93274.0,93273.0,0.02423083]
[1763488625384,0.04386,93274.0,93273.0,0.04588083]
[1763488625982,0.40566,93291.0,93290.0,0.1519805]
[1763488626184,0.40566,93291.0,93290.0,0.00219803]
[1763488626388,0.40566,93291.0,93290.0,0.02526803]
[1763488626586,0.40566,93291.0,93290.0,0.00219803]
[1763488627794,0.04486,93281.0,93280.0,0.38387]
[1763488627994,0.04486,93281.0,93280.0,0.51499003]
[1763488631095,0.02327,93281.0,93280.0,0.51499003]
[1763488631288,0.40566,93291.0,93290.0,0.1519805]
[1763488631597,0.40566,93291.0,93290.0,0.15417853]
[1763488631989,0.04486,93291.0,93290.0,0.15417853]
[1763488632294,3e-08,93292.0,93290.0,0.10945853]
[1763488633589,3e-08,93292.0,93290.0,0.18646446]
[1763488633794,3e-08,93292.0,93291.0,0.07700593]
[1763488633994,3e-08,93292.0,93290.0,0.18646446]
[1763488634386,3e-08,93292.0,93290.0,0.10945853]
[1763488635490,3e-08,93292.0,93291.0,0.07695228]
[1763488636189,3e-08,93292.0,93290.0,0.10945853]
[1763488636499,3e-08,93292.0,93291.0,0.0769473]
[1763488636998,3e-08,93292.0,93290.0,0.18640583]
[1763488637209,3e-08,93292.0,93290.0,0.10945853]
[1763488637399,3e-08,93292.0,93290.0,0.18640583]
[1763488638299,3e-08,93292.0,93290.0,0.10945853]
[1763488638503,3e-08,93292.0,93290.0,0.18640583]
[1763488639288,0.04486,93291.0,93290.0,0.15417853]
[1763488639489,0.04486,93291.0,93290.0,0.41321853]
[1763488639794,0.04486,93291.0,93290.0,0.15417853]
[1763488640000,0.04486,93291.0,93290.0,0.41321853]
[1763488641294,3e-08,93292.0,93290.0,0.36849853]
[1763488644503,3e-08,93292.0,93290.0,0.44544583]
[1763488644990,3e-08,93292.0,93291.0,0.0769473]
[1763488645395,3e-08,93292.0,93290.0,0.44544583]
[1763488646389,3e-08,93292.0,93291.0,0.0769473]
[1763488646593,3e-08,93292.0,93290.0,0.36849853]
[1763488647704,0.05623,93312.0,93311.0,0.1298163]
[1763488647705,0.04352,93312.0,93311.0,0.1298163]
[1763488648000,0.05572,93321.0,93320.0,0.151156]
[1763488648205,0.05572,93321.0,93311.0,0.1511663]
[1763488648206,0.04301,93312.0,93311.0,0.1511663]
[1763488648811,0.04401,93312.0,93311.0,0.1511663]
[1763488649199,0.05672,93312.0,93311.0,0.1072363]
[1763488650007,0.05772,93312.0,93311.0,0.1072363]
[1763488652216,0.002,93312.0,93311.0,0.1511663]
[1763488652714,0.04301,93330.0,93329.0,0.1511457]
[1763488653610,0.40381,93343.0,93342.0,0.1511307]
[1763488654000,0.04301,93343.0,93342.0,0.1511307]
[1763488654200,0.04301,93354.0,93353.0,0.1071874]
[1763488654406,0.06798129,93354.0,93353.0,0.1071874]
[1763488654608,0.04301,93354.0,93353.0,0.1511174]
[1763488655503,0.06798033,93354.0,93353.0,0.1511174]
[1763488655907,0.06798033,93354.0,93353.0,0.1071874]
[1763488656411,0.04301,93351.0,93350.0,0.02477803]
[1763488656613,0.06798033,93351.0,93350.0,0.00219803]
[1763488658304,0.06998033,93351.0,93350.0,0.00219803]
[1763488658706,0.06998033,93351.0,93344.0,0.1071983]
[1763488658905,0.04301,93341.0,93340.0,0.00219803]
[1763488660010,0.04301,93334.0,93333.0,0.00016074]
[1763488660215,0.1502199,93334.0,93333.0,0.00016074]
[1763488660711,0.1502199,93334.0,93333.0,0.10737184]
[1763488660906,0.04301,93334.0,93333.0,0.15130184]
[1763488662216,0.04401,93334.0,93333.0,0.15130184]
[1763488662411,0.04501,93334.0,93333.0,0.15130184]
[1763488662912,0.04501,93334.0,93333.0,0.00016074]
[1763488663118,0.1410648,93321.0,93320.0,0.1072251]
[1763488663415,0.1629448,93321.0,93320.0,0.10942313]
[1763488663610,0.05572,93321.0,93320.0,0.10942313]
[1763488663810,0.05572,93321.0,93320.0,0.00219803]
[1763488664109,0.05572,93321.0,93304.0,0.25896]
[1763488664110,0.04301,93305.0,93304.0,0.4101344]
[1763488666512,0.04301,93305.0,93304.0,0.4111344]
[1763488666813,0.02188,93305.0,93304.0,0.4111344]
[1763488667012,0.04301,93305.0,93304.0,0.4111344]